{"text_format":"3","workbook":"xlsx","n_sheets":3,"sheets":["Datenerfassung","Änderungsantrag","Steuerung"],"not_rendered":{"defined_names":3},"read":"whole","date_system":"1900"}

{"sheet":"Datenerfassung","index":0,"n_rows":69,"n_cols":4,"rows_kept":69,"merged":[[6,1,6,2],[7,1,7,2],[8,1,8,2],[9,1,9,2],[10,1,10,2],[11,1,11,2],[14,1,14,3],[16,1,16,3],[21,1,21,2],[28,1,33,1],[34,1,39,1],[44,1,51,1],[52,1,59,1],[64,1,64,2],[65,1,65,2],[70,1,70,3]]}
[]
[null,"Bitte ausfüllen und das Arbeitsblatt \"Änderungsantrag\" als PDF speichern, signieren und an die FSV senden!"]
[]
[]
[null,"Angaben zur Forschungseinrichtung und zum Projekt [Pflichtangaben]:"]
[]
[null,"Nummer der Forschungseinrichtung "]
[null,{"$f":"\"Name der Forschungseinrichtung \"&IF(ISBLANK(D7),\"\",D7)","v":"Name der Forschungseinrichtung "}]
[null,"Förderkennzeichen (beginnt mit \"01IF\")"]
[null,"Projektakronym"]
[null,"Laufzeitbeginn (TT.MM.JJJJ)"]
[null,"Laufzeitende (TT.MM.JJJJ)"]
[]
[]
[null,"Fachliche Begründung zu der/den geplanten nachstehenden Änderung(en) [Pflichtangabe], ggf. einschließlich Erläuterung, warum keine anderweitige Kompensation möglich ist; ggf. Anlage mit Begründung beifügen (hier max. 2.000 Zeichen):"]
[]
[]
[]
[]
[null,"Angaben bei einem Antrag auf Laufzeitverlängerung:"]
[]
[null,"Geplantes neues Laufzeitende (TT.MM.JJJJ)"]
[null,{"$f":"IF(ISBLANK(D7),\"ggf. Name einer zweiten beteiligten Forschungseinrichtung\",IF(D7>1,\"Name der Forschungseinrichtung 1\",\"ggf. Name der Forschungseinrichtung 2\"))","v":"ggf. Name einer zweiten beteiligten Forschungseinrichtung"}]
[null,{"$f":"IF(ISBLANK(D7),\"ggf. Name einer dritten beteiligten Forschungseinrichtung\",IF(D7>2,\"Name der Forschungseinrichtung 2\",\"ggf. Name der Forschungseinrichtung 3\"))","v":"ggf. Name einer dritten beteiligten Forschungseinrichtung"}]
[]
[]
[null,"Angaben bei einem Antrag auf Änderung der kassenmäßigen Bereitstellung (Ratenumstellung):"]
[]
[null,"Bewilligte kassenmäßige Bereitstellung (KMB) der Zuwendung",{"$f":"IF(OR(ISBLANK(LZA),ISBLANK(LZE)),\"\",YEAR(TODAY()))","v":""}]
[null,null,{"$f":"IF(OR(ISBLANK(LZA),ISBLANK(LZE)),\"\",IF(YEAR(TODAY())+1>YEAR(IF(ISBLANK(LZV),LZE,LZV))+1,\"\",YEAR(TODAY())+1))","v":""}]
[null,null,{"$f":"IF(OR(ISBLANK(LZA),ISBLANK(LZE)),\"\",IF(YEAR(TODAY())+2>YEAR(IF(ISBLANK(LZV),LZE,LZV))+1,\"\",YEAR(TODAY())+2))","v":""}]
[null,null,{"$f":"IF(OR(ISBLANK(LZA),ISBLANK(LZE)),\"\",IF(YEAR(TODAY())+3>YEAR(IF(ISBLANK(LZV),LZE,LZV))+1,\"\",YEAR(TODAY())+3))","v":""}]
[null,null,{"$f":"IF(OR(ISBLANK(LZA),ISBLANK(LZE)),\"\",IF(YEAR(TODAY())+4>YEAR(IF(ISBLANK(LZV),LZE,LZV))+1,\"\",YEAR(TODAY())+4))","v":""}]
[null,null,"Summe bewilligt",{"$f":"IF(SUM(D29:D33)=0,\"\",SUM(D29:D33))","v":""}]
[null,"Benötigte kassenmäßige Bereitstellung (KMB) der Zuwendung",{"$f":"C29","v":""}]
[null,null,{"$f":"C30","v":""}]
[null,null,""]
[null,null,""]
[null,null,""]
[null,null,"Summe benötigt",{"$f":"IF(SUM(D35:D39)=0,\"\",SUM(D35:D39))","v":""}]
[]
[]
[null,"Angaben bei einem Antrag auf Änderung der Einzelansätze:"]
[]
[null,"Bewilligte Zuwendung nach Einzelansätzen","A.1"]
[null,null,"A.2"]
[null,null,"A.3"]
[null,null,"A.4"]
[null,null,"B"]
[null,null,"C"]
[null,null,"D"]
[null,null,"Summe bewilligt",{"$f":"IF(SUM(D45:D51)=0,\"\",SUM(D45:D51))","v":""}]
[null,"Benötigte Zuwendung nach Einzelansätzen","A.1"]
[null,null,"A.2"]
[null,null,"A.3"]
[null,null,"A.4"]
[null,null,"B"]
[null,null,"C"]
[null,null,"D"]
[null,null,"Summe benötigt",{"$f":"IF(SUM(D53:D59)=0,\"\",SUM(D53:D59))","v":""}]
[]
[]
[null,"Mitteilung über bzw. Antrag auf Änderung der Anzahl der Personenmonate:"]
[]
[null,"Bewilligte Anzahl Personenmonate in A.1"]
[null,"Benötigte Anzahl Personenmonate in A.1"]
[]
[]
[null,"Antrag auf sonstige Änderung(en), z. B. abweichende Gerätebeschaffung:"]

{"sheet":"Änderungsantrag","index":1,"n_rows":57,"n_cols":9,"rows_kept":57,"merged":[[3,1,3,3],[3,4,3,5],[4,1,4,3],[4,4,4,5],[5,1,5,3],[5,4,5,5],[6,1,6,3],[6,4,6,5],[8,2,8,8],[36,2,36,8],[39,2,39,8],[47,1,47,4],[48,1,48,4],[55,1,55,4],[55,6,55,8],[56,1,56,4],[56,6,56,8]]}
[]
[null,"Mitteilung der Forschungseinrichtung(en) / Antrag auf Änderung(en)"]
[]
[null,"Förderkennzeichen",null,null,{"$f":"IF(ISBLANK(Datenerfassung!D9),\"\",Datenerfassung!D9)","v":""},null,null,"Datum",{"$f":"TODAY()","v":"2025-08-04"}]
[null,"Projektakronym",null,null,{"$f":"IF(ISBLANK(Datenerfassung!D10),\"\",Datenerfassung!D10)","v":""}]
[null,"Nummer der Forschungseinrichtung",null,null,{"$f":"IF(ISBLANK(Datenerfassung!D7),\"\",Datenerfassung!D7)","v":""}]
[null,"Name der Forschungseinrichtung",null,null,{"$f":"IF(ISBLANK(Datenerfassung!D8),\"\",Datenerfassung!D8)","v":""}]
[]
[null,null,{"$f":"\"Eine Anpassung der Raten ist nicht erforderlich. Die für das Jahr \" & YEAR(TODAY()) & \" kassenmäßig bereitgestellten Fördermittel werden/wurden in diesem Jahr in voller Höhe angefordert.\"","v":"Eine Anpassung der Raten ist nicht erforderlich. Die für das Jahr 2025 kassenmäßig bereitgestellten Fördermittel werden/wurden in diesem Jahr in voller Höhe angefordert."}]
[]
[null,null,{"$f":"\"Wir bitten um Prüfung, ob und inwieweit die kassenmäßige Bereitstellung der Fördermittel wie folgt an unseren Bedarf angepasst werden kann:\"","v":"Wir bitten um Prüfung, ob und inwieweit die kassenmäßige Bereitstellung der Fördermittel wie folgt an unseren Bedarf angepasst werden kann:"}]
[]
[{"$nulls":3},{"$f":"Datenerfassung!C29","v":""},{"$f":"Datenerfassung!C30","v":""},{"$f":"Datenerfassung!C31","v":""},{"$f":"Datenerfassung!C32","v":""},{"$f":"Datenerfassung!C33","v":""},{"$f":"IF(D$13=\"\",\"\",\"Summen\")","v":""}]
[null,null,"Ist",{"$f":"IF(D13=\"\",\"\",Datenerfassung!D29)","v":""},{"$f":"IF(E13=\"\",\"\",IF(Datenerfassung!D30=\"\",0,Datenerfassung!D30))","v":""},{"$f":"IF(F$13=\"\",\"\",IF(Datenerfassung!D31=\"\",0,Datenerfassung!D31))","v":""},{"$f":"IF(G$13=\"\",\"\",IF(Datenerfassung!D32=\"\",0,Datenerfassung!D32))","v":""},{"$f":"IF(H$13=\"\",\"\",IF(Datenerfassung!D33=\"\",0,Datenerfassung!D33))","v":""},{"$f":"IF(D$13=\"\",\"\",SUM(D14:H14))","v":""}]
[null,null,"Soll",{"$f":"IF(D13=\"\",\"\",Datenerfassung!D35)","v":""},{"$f":"IF(E13=\"\",\"\",Datenerfassung!D36)","v":""},{"$f":"IF(F$13=\"\",\"\",Datenerfassung!D37)","v":""},{"$f":"IF(G$13=\"\",\"\",Datenerfassung!D38)","v":""},{"$f":"IF(H$13=\"\",\"\",Datenerfassung!D39)","v":""},{"$f":"IF(D$13=\"\",\"\",SUM(D15:H15))","v":""}]
[null,null,"Änderung",{"$f":"IF(D13=\"\",\"\",D15-D14)","v":""},{"$f":"IF(E13=\"\",\"\",E15-E14)","v":""},{"$f":"IF(F13=\"\",\"\",F15-F14)","v":""},"","",{"$f":"IF(D$13=\"\",\"\",SUM(D16:H16))","v":""}]
[]
[null,null,{"$f":"\"Wir bitten um eine ausgabenneutrale Verlängerung der Projektlaufzeit. Der Bewilligungszeitraum soll am \" & IF(ISBLANK(Datenerfassung!D22),\"__________\",TEXT(Datenerfassung!D22,\"tt.MM.jjjj\")) & \" enden.\"","v":"Wir bitten um eine ausgabenneutrale Verlängerung der Projektlaufzeit. Der Bewilligungszeitraum soll am __________ enden."}]
[]
[null,null,"Eine Erhöhung der Anzahl der Personenmonate für den Einzelansatz A.1 ist nicht erforderlich."]
[]
[null,null,{"$f":"\"Wir bitten um Erhöhung der Anzahl der Personenmonate für den Einzelansatz A.1 auf \"&IF(ISBLANK(Datenerfassung!D66),\"___________\",Datenerfassung!D66&\" Personenmonate\")","v":"Wir bitten um Erhöhung der Anzahl der Personenmonate für den Einzelansatz A.1 auf ___________"}]
[]
[null,null,"Wir bitten um eine Änderung des Einzelfinanzierungsplans wie folgt:"]
[]
[{"$nulls":3},"Ist","Soll","Änderung"]
[null,null,"A.1",{"$f":"IF(OR(ISBLANK(Datenerfassung!D53),ISBLANK(Datenerfassung!D36)),\"\",Datenerfassung!D36)","v":""},{"$f":"IF(ISBLANK(Datenerfassung!D53),\"\",Datenerfassung!D53)","v":""},{"$f":"IF(AND(ISNUMBER(D27),ISNUMBER(E27)),E27-D27,\"\")","v":""}]
[null,null,"A.2",{"$f":"IF(OR(ISBLANK(Datenerfassung!D54),ISBLANK(Datenerfassung!D37)),\"\",Datenerfassung!D37)","v":""},{"$f":"IF(ISBLANK(Datenerfassung!D54),\"\",Datenerfassung!D54)","v":""},{"$f":"IF(AND(ISNUMBER(D28),ISNUMBER(E28)),E28-D28,\"\")","v":""}]
[null,null,"A.3",{"$f":"IF(OR(ISBLANK(Datenerfassung!D55),ISBLANK(Datenerfassung!D38)),\"\",Datenerfassung!D38)","v":""},{"$f":"IF(ISBLANK(Datenerfassung!D55),\"\",Datenerfassung!D55)","v":""},""]
[null,null,"A.4",{"$f":"IF(OR(ISBLANK(Datenerfassung!D56),ISBLANK(Datenerfassung!D39)),\"\",Datenerfassung!D39)","v":""},{"$f":"IF(ISBLANK(Datenerfassung!D56),\"\",Datenerfassung!D56)","v":""},""]
[null,null,"B.",{"$f":"IF(OR(ISBLANK(Datenerfassung!D57),ISBLANK(Datenerfassung!D40)),\"\",Datenerfassung!D40)","v":""},{"$f":"IF(ISBLANK(Datenerfassung!D57),\"\",Datenerfassung!D57)","v":""},""]
[null,null,"C.",{"$f":"IF(OR(ISBLANK(Datenerfassung!D58),ISBLANK(Datenerfassung!D41)),\"\",Datenerfassung!D41)","v":""},{"$f":"IF(ISBLANK(Datenerfassung!D58),\"\",Datenerfassung!D58)","v":""},""]
[null,null,"D.",{"$f":"IF(OR(ISBLANK(Datenerfassung!D59),ISBLANK(Datenerfassung!D43)),\"\",Datenerfassung!D43)","v":""},{"$f":"IF(ISBLANK(Datenerfassung!D59),\"\",Datenerfassung!D59)","v":""},""]
[null,null,"Summe",{"$f":"IF(SUM(D27:D33)>0,SUM(D27:D33),\"\")","v":""},{"$f":"IF(SUM(E27:E33)>0,SUM(E27:E33),\"\")","v":""},""]
[]
[null,null,"Wir bitten um folgende sonstige Änderung(en):"]
[null,null,{"$f":"IF(ISBLANK(Datenerfassung!B71),\"\",Datenerfassung!B71)","v":""}]
[]
[null,null,"Sachliche Begründung für die gewünschte(n) Änderung(en) [alternativ Begründung als Anlage beifügen]:"]
[null,null,{"$f":"IF(ISBLANK(Datenerfassung!B17),\"\",Datenerfassung!B17)","v":""}]
{"$rows_empty":7}
[null,{"$f":"\"Unterschrift/Signatur der Forschungseinrichtung \"&IF(ISBLANK(Datenerfassung!D7),\"\",Datenerfassung!D7)","v":"Unterschrift/Signatur der Forschungseinrichtung "}]
[null,{"$f":"IF(ISBLANK(Datenerfassung!D8),\"\",\"(\"&Datenerfassung!D8&\")\")","v":""}]
[]
[]
[]
[]
[]
[]
[null,{"$f":"IF(ISBLANK(Datenerfassung!D23),\"\",\"Unterschrift/Signatur der Forschungseinrichtung \" & RIGHT(Datenerfassung!B23,1))","v":""},{"$nulls":4},{"$f":"IF(ISBLANK(Datenerfassung!D24),\"\",\"Unterschrift/Signatur der Forschungseinrichtung \" & RIGHT(Datenerfassung!B24,1))","v":""}]
[null,{"$f":"IF(ISBLANK(Datenerfassung!D23),\"\",\"(\"&Datenerfassung!D23&\")\")","v":""},{"$nulls":4},{"$f":"IF(ISBLANK(Datenerfassung!D24),\"\",\"(\"&Datenerfassung!D24&\")\")","v":""}]

{"sheet":"Steuerung","index":2,"n_rows":25,"n_cols":5,"rows_kept":25,"hidden":true}
[]
[null,"RUST"]
[null,"Keine Änderung der KMB erforderlich",null,null,{"$f":"IF(AND(ISBLANK(Datenerfassung!D35),ISBLANK(Datenerfassung!D36),ISBLANK(Datenerfassung!D37),ISBLANK(Datenerfassung!D38),ISBLANK(Datenerfassung!D39)),TRUE,FALSE)","v":true}]
[null,"Änderung der KMB gewünscht",null,null,{"$f":"IF(E3=TRUE,FALSE,TRUE)","v":false}]
[]
[null,"Änderung der Laufzeit"]
[null,"Keine Änderung gewünscht",null,null,{"$f":"IF(ISBLANK(Datenerfassung!D22),TRUE,FALSE)","v":true}]
[null,"Änderung gewünscht",null,null,{"$f":"IF(E7=TRUE,FALSE,TRUE)","v":false}]
[]
[null,"Änderung des Finanzierungsplans"]
[null,"Änderung gewünscht",null,null,{"$f":"IF(AND(ISBLANK(Datenerfassung!D53),ISBLANK(Datenerfassung!D54),ISBLANK(Datenerfassung!D55),ISBLANK(Datenerfassung!D56),ISBLANK(Datenerfassung!D57),ISBLANK(Datenerfassung!D58),ISBLANK(Datenerfassung!D59)),FALSE,TRUE)","v":false}]
[]
[null,"Sachliche Begründung erforderlich"]
[null,"erforderlich",null,null,{"$f":"IF(OR(ISNUMBER(Datenerfassung!D22),SUM(Datenerfassung!D35:D39)>0,SUM(Datenerfassung!D53:D59)>0,ISNUMBER(Datenerfassung!D66),Datenerfassung!B71<>\"\"),TRUE,FALSE)","v":false}]
[]
[null,"Personenmonate"]
[null,"Keine Erhöhung gewünscht",null,null,{"$f":"IF(ISBLANK(Datenerfassung!D66),TRUE,IF(Datenerfassung!D66=Datenerfassung!D65,TRUE,FALSE))","v":true}]
[null,"Erhöhung gewünscht",null,null,{"$f":"IF(E17=TRUE,FALSE,TRUE)","v":false}]
[]
[null,"Sonstige Änderung"]
[null,"Änderung gewünscht",null,null,{"$f":"IF(ISBLANK(Datenerfassung!B71),FALSE,TRUE)","v":false}]
[]
[null,"Liste FE-Nrn.",null,null,1]
[{"$nulls":4},2]
[{"$nulls":4},3]